[Event "VII Open Internacional Quart de Poblet"]
[Site "Quart de Poblet, Spain"]
[Date "2019.08.09"]
[Round "7.1"]
[White "Cruz Lledo, Pablo"]
[Black "Kovacevic, Slobodan"]
[Result "1-0"]
[TimeControl "90m +30s por jugada"]
[WhiteFideId "2297361"]
[BlackFideId "902152"]
[WhiteElo "2445"]
[BlackElo "2252"]

1. d4 {[%clk 01:23:00]} {[%emt 00:07:57]} Nf6 {[%clk 01:30:45]} {[%emt
00:00:16]} 2. c4 {[%clk 01:23:15]} {[%emt 00:00:15]} e6 {[%clk 01:31:05]}
{[%emt 00:00:10]} 3. Nc3 {[%clk 01:23:37]} {[%emt 00:00:07]} c5 {[%clk
01:31:01]} {[%emt 00:00:35]} 4. d5 {[%clk 01:23:55]} {[%emt 00:00:12]} exd5
{[%clk 01:31:27]} {[%emt 00:00:07]} 5. cxd5 {[%clk 01:24:20]} {[%emt 00:00:05]}
d6 {[%clk 01:31:37]} {[%emt 00:00:16]} 6. e4 {[%clk 01:24:46]} {[%emt
00:00:08]} g6 {[%clk 01:31:54]} {[%emt 00:00:09]} 7. Nge2 {[%clk 01:25:07]}
{[%emt 00:00:10]} Bg7 {[%clk 01:30:35]} {[%emt 00:01:49]} 8. Ng3 {[%clk
01:25:33]} {[%emt 00:00:07]} O-O {[%clk 01:30:15]} {[%emt 00:00:47]} 9. Be2
{[%clk 01:25:54]} {[%emt 00:00:09]} a6 {[%clk 01:24:06]} {[%emt 00:06:41]} 10.
a4 {[%clk 01:26:21]} {[%emt 00:00:05]} Nbd7 {[%clk 01:15:01]} {[%emt 00:09:33]}
11. O-O {[%clk 01:26:19]} {[%emt 00:00:33]} Re8 {[%clk 01:13:04]} {[%emt
00:02:25]} 12. Be3 {[%clk 01:26:28]} {[%emt 00:00:20]} h5 {[%clk 01:11:54]}
{[%emt 00:01:40]} 13. f3 {[%clk 01:26:55]} {[%emt 00:00:06]} Nh7 {[%clk
01:07:53]} {[%emt 00:04:27]} 14. Qd2 {[%clk 01:27:03]} {[%emt 00:00:21]} h4
{[%clk 01:06:13]} {[%emt 00:02:11]} 15. Nh1 {[%clk 01:27:26]} {[%emt 00:00:10]}
f5 {[%clk 01:06:17]} {[%emt 00:00:24]} 16. Nf2 {[%clk 01:27:47]} {[%emt
00:00:09]} Ne5 {[%clk 01:05:50]} {[%emt 00:00:56]} 17. Kh1 {[%clk 01:27:53]}
{[%emt 00:00:25]} Kh8 {[%clk 01:01:52]} {[%emt 00:04:27]} 18. Rg1 {[%clk
01:27:52]} {[%emt 00:00:36]} Rf8 {[%clk 01:00:03]} {[%emt 00:02:14]} 19. exf5
{[%clk 01:27:25]} {[%emt 00:00:57]} Bxf5 {[%clk 00:45:38]} {[%emt 00:14:54]} 20.
Nce4 {[%clk 01:23:04]} {[%emt 00:05:03]} Qe7 {[%clk 00:43:19]} {[%emt
00:02:38]} 21. a5 {[%clk 01:17:29]} {[%emt 00:06:09]} Bd7 {[%clk 00:37:37]}
{[%emt 00:06:09]} 22. b4 {[%clk 01:16:53]} {[%emt 00:01:08]} c4 {[%clk
00:32:17]} {[%emt 00:05:46]} 23. Bd4 {[%clk 01:13:23]} {[%emt 00:04:00]} h3
{[%clk 00:30:58]} {[%emt 00:01:49]} 24. gxh3 {[%clk 01:06:09]} {[%emt
00:07:52]} Nxf3 {[%clk 00:22:53]} {[%emt 00:08:30]} 25. Bxf3 {[%clk 01:06:30]}
{[%emt 00:00:05]} Rxf3 {[%clk 00:23:14]} {[%emt 00:00:10]} 26. Rxg6 {[%clk
01:06:18]} {[%emt 00:00:41]} Bxd4 {[%clk 00:22:35]} {[%emt 00:01:09]} 27. Qxd4+
{[%clk 01:06:28]} {[%emt 00:00:21]} Qe5 {[%clk 00:23:01]} {[%emt 00:00:06]} 28.
Qxe5+ {[%clk 01:04:52]} {[%emt 00:02:04]} dxe5 {[%clk 00:22:30]} {[%emt
00:01:01]} 29. Rg3 {[%clk 01:04:40]} {[%emt 00:00:42]} Rf4 {[%clk 00:22:00]}
{[%emt 00:01:00]} 30. Kg1 {[%clk 01:02:39]} {[%emt 00:02:36]} Raf8 {[%clk
00:22:00]} {[%emt 00:00:26]} 31. Nc5 {[%clk 01:00:43]} {[%emt 00:02:28]} R8f7
{[%clk 00:22:00]} {[%emt 00:00:31]} 32. Nfe4 {[%clk 00:59:43]} {[%emt
00:01:26]} Bf5 {[%clk 00:21:58]} {[%emt 00:00:35]} 33. Nd6 {[%clk 00:58:10]}
{[%emt 00:02:04]} Rf6 {[%clk 00:22:19]} {[%emt 00:00:05]} 34. Nxf5 {[%clk
00:55:25]} {[%emt 00:03:20]} R6xf5 {[%clk 00:22:41]} {[%emt 00:00:06]} 35. Nxb7
{[%clk 00:50:31]} {[%emt 00:05:21]} Rd4 {[%clk 00:19:31]} {[%emt 00:03:39]} 36.
Nc5 {[%clk 00:49:28]} {[%emt 00:01:37]} Ng5 {[%clk 00:16:00]} {[%emt 00:03:58]}
37. Rf1 {[%clk 00:44:49]} {[%emt 00:05:09]} Rxf1+ {[%clk 00:15:54]} {[%emt
00:00:36]} 38. Kxf1 {[%clk 00:45:16]} {[%emt 00:00:06]} Ne4 {[%clk 00:13:26]}
{[%emt 00:02:56]} 39. Nxe4 {[%clk 00:43:32]} {[%emt 00:02:21]} Rxe4 {[%clk
00:13:55]} 40. Rg4 {[%clk 00:43:03]} {[%emt 00:00:51]} Re3 {[%clk 00:13:50]}
{[%emt 00:00:35]} 41. Rxc4 {[%clk 00:43:28]} {[%emt 00:00:06]} Rd3 {[%clk
00:14:17]} {[%emt 00:00:06]} 42. Rc6 {[%clk 00:43:09]} {[%emt 00:00:46]} Rd4
{[%clk 00:14:27]} {[%emt 00:00:24]} 43. Rb6 {[%clk 00:43:26]} {[%emt 00:00:09]}
Kg7 {[%clk 00:14:42]} {[%emt 00:00:15]} 44. Kf2 {[%clk 00:41:04]} {[%emt
00:02:51]} Kf7 {[%clk 00:15:05]} {[%emt 00:00:08]} 45. Kg3 {[%clk 00:41:15]}
{[%emt 00:00:19]} Rd3+ {[%clk 00:15:17]} {[%emt 00:00:18]} 46. Kg4 {[%clk
00:41:26]} {[%emt 00:00:19]} Rxd5 {[%clk 00:15:46]} 47. Kf5 {[%clk 00:41:47]}
{[%emt 00:00:12]} Rd4 {[%clk 00:16:06]} {[%emt 00:00:07]} 48. Kxe5 {[%clk
00:41:52]} {[%emt 00:00:27]} Rh4 {[%clk 00:16:18]} {[%emt 00:00:18]} 49. Kd5
{[%clk 00:42:12]} {[%emt 00:00:09]} Ke7 {[%clk 00:16:22]} {[%emt 00:00:26]} 50.
Kc5 {[%clk 00:42:26]} {[%emt 00:00:16]} Rh5+ {[%clk 00:16:12]} {[%emt
00:00:40]} 51. Kc6 {[%clk 00:42:49]} {[%emt 00:00:07]} Rf5 {[%emt 00:00:51]} 52.
Kb7 1-0

[Event "VII Open Internacional Quart de Poblet"]
[Site "Quart de Poblet, Spain"]
[Date "2019.08.09"]
[Round "7.2"]
[White "Sanchez Saez, Francisco"]
[Black "Davtyan, David Arm"]
[Result "0-1"]
[TimeControl "90m +30s por jugada"]
[WhiteFideId "2231743"]
[WhiteElo "2359"]
[BlackElo "2249"]

1. e4 {[%clk 01:20:54]} {[%emt 00:10:07]} c5 {[%clk 01:30:15]} {[%emt
00:00:46]} 2. d4 {[%clk 01:21:19]} {[%emt 00:00:19]} cxd4 {[%clk 01:30:36]}
{[%emt 00:00:10]} 3. c3 {[%clk 01:21:46]} d3 {[%clk 01:31:02]} 4. Bxd3 {[%clk
01:22:04]} {[%emt 00:00:10]} Nc6 {[%clk 01:30:39]} {[%emt 00:00:45]} 5. Nf3
{[%clk 01:22:27]} {[%emt 00:00:08]} g6 {[%clk 01:30:52]} {[%emt 00:00:35]} 6.
O-O {[%clk 01:22:47]} Bg7 {[%clk 01:31:20]} 7. c4 {[%clk 01:22:56]} {[%emt
00:00:40]} d6 {[%clk 01:31:18]} {[%emt 00:00:09]} 8. h3 {[%clk 01:23:20]}
{[%emt 00:00:07]} Nf6 {[%clk 01:31:39]} {[%emt 00:00:10]} 9. Nc3 {[%clk
01:23:45]} {[%emt 00:00:03]} O-O {[%clk 01:32:00]} {[%emt 00:00:09]} 10. Be3
{[%clk 01:24:10]} {[%emt 00:00:06]} Nd7 {[%clk 01:20:53]} {[%emt 00:11:36]} 11.
Rc1 {[%clk 01:24:26]} {[%emt 00:00:13]} Nde5 {[%clk 01:14:42]} {[%emt
00:06:42]} 12. Be2 {[%clk 01:24:46]} {[%emt 00:00:09]} Nxf3+ {[%clk 01:13:33]}
{[%emt 00:01:38]} 13. Bxf3 {[%clk 01:25:07]} {[%emt 00:00:10]} Be6 {[%clk
01:07:18]} {[%emt 00:06:44]} 14. b3 {[%clk 01:18:29]} {[%emt 00:07:07]} Qa5
{[%clk 00:59:45]} {[%emt 00:08:12]} 15. Qd2 {[%clk 01:14:01]} {[%emt 00:05:13]}
a6 {[%clk 00:45:30]} {[%emt 00:14:21]} 16. Nd5 {[%clk 01:01:06]} {[%emt
00:13:33]} Qxd2 {[%clk 00:40:06]} {[%emt 00:05:46]} 17. Bxd2 {[%clk 01:01:29]}
{[%emt 00:00:23]} Rac8 {[%clk 00:39:08]} {[%emt 00:01:13]} 18. Bg5 {[%clk
00:57:40]} {[%emt 00:04:19]} Rfe8 {[%clk 00:36:56]} {[%emt 00:02:42]} 19. Rfe1
{[%clk 00:57:20]} {[%emt 00:00:50]} Bb2 {[%clk 00:33:47]} {[%emt 00:03:40]} 20.
Rb1 {[%clk 00:56:04]} {[%emt 00:01:45]} Be5 {[%clk 00:33:03]} {[%emt 00:01:13]}
21. Bg4 {[%clk 00:54:34]} {[%emt 00:02:34]} h5 {[%clk 00:28:24]} {[%emt
00:04:35]} 22. Be2 {[%clk 00:51:37]} {[%emt 00:03:26]} f6 {[%clk 00:21:49]}
{[%emt 00:07:09]} 23. Bd2 {[%clk 00:48:53]} {[%emt 00:03:20]} f5 {[%clk
00:20:14]} {[%emt 00:01:56]} 24. Bd3 {[%clk 00:48:13]} {[%emt 00:01:13]} Kf7
{[%clk 00:17:05]} {[%emt 00:04:04]} 25. Nf4 {[%clk 00:41:10]} {[%emt 00:07:07]}
Bxf4 {[%clk 00:13:30]} {[%emt 00:04:02]} 26. Bxf4 {[%clk 00:41:14]} {[%emt
00:00:25]} Nb4 {[%clk 00:13:27]} {[%emt 00:00:36]} 27. exf5 {[%clk 00:36:01]}
{[%emt 00:05:42]} Nxd3 {[%clk 00:13:24]} {[%emt 00:00:51]} 28. fxe6+ {[%clk
00:35:23]} {[%emt 00:00:48]} Kf6 {[%clk 00:13:51]} {[%emt 00:00:28]} 29. Re3
{[%clk 00:16:52]} {[%emt 00:18:36]} Nxf4 {[%clk 00:14:16]} {[%emt 00:00:24]} 30.
Rf3 {[%clk 00:17:20]} {[%emt 00:00:05]} g5 {[%clk 00:11:17]} {[%emt 00:03:06]}
31. g3 {[%clk 00:17:03]} {[%emt 00:00:47]} Kf5 {[%clk 00:10:41]} {[%emt
00:01:07]} 32. Re1 {[%clk 00:14:56]} {[%emt 00:02:36]} Rc5 {[%clk 00:09:30]}
{[%emt 00:01:41]} 33. gxf4 {[%clk 00:14:44]} {[%emt 00:00:42]} gxf4 {[%clk
00:09:45]} {[%emt 00:00:20]} 34. Rd3 {[%clk 00:14:49]} {[%emt 00:00:22]} b5
{[%clk 00:07:46]} {[%emt 00:02:29]} 35. Rd4 {[%clk 00:12:32]} {[%emt 00:02:45]}
bxc4 {[%clk 00:07:04]} {[%emt 00:01:11]} 36. bxc4 {[%clk 00:12:53]} {[%emt
00:00:13]} Rg8+ {[%clk 00:06:30]} {[%emt 00:01:01]} 37. Kf1 {[%clk 00:12:50]}
{[%emt 00:00:42]} Re5 {[%clk 00:03:42]} {[%emt 00:03:10]} 38. Rxe5+ {[%clk
00:12:27]} {[%emt 00:00:53]} dxe5 {[%clk 00:04:07]} {[%emt 00:00:11]} 39. Rd7
{[%clk 00:12:50]} {[%emt 00:00:16]} Kxe6 {[%clk 00:04:30]} 40. Ra7 {[%clk
00:13:15]} Rc8 {[%clk 00:04:38]} {[%emt 00:00:22]} 41. Rxa6+ {[%clk 00:13:38]}
{[%emt 00:00:04]} Kf5 {[%clk 00:05:02]} {[%emt 00:00:07]} 42. Rh6 {[%clk
00:13:42]} {[%emt 00:00:22]} Rxc4 {[%clk 00:03:42]} {[%emt 00:01:50]} 43. Rxh5+
{[%clk 00:14:06]} {[%emt 00:00:35]} Ke4 {[%clk 00:04:08]} {[%emt 00:00:08]} 44.
Kg2 {[%clk 00:14:09]} Rc8 {[%clk 00:03:39]} {[%emt 00:00:54]} 45. Rg5 {[%clk
00:14:04]} {[%emt 00:00:49]} Rh8 {[%clk 00:02:23]} {[%emt 00:01:31]} 46. a4
{[%clk 00:13:59]} {[%emt 00:00:42]} Ra8 {[%clk 00:01:58]} {[%emt 00:00:58]} 47.
Rg7 {[%clk 00:13:35]} {[%emt 00:00:52]} Rxa4 {[%clk 00:02:13]} {[%emt
00:00:13]} 48. Rxe7 {[%clk 00:13:57]} {[%emt 00:00:04]} Kf5 {[%clk 00:01:53]}
{[%emt 00:00:52]} 49. Rf7+ {[%clk 00:14:16]} {[%emt 00:00:09]} Kg6 {[%clk
00:02:10]} {[%emt 00:00:36]} 50. Rf8 {[%clk 00:14:17]} {[%emt 00:00:11]} Kg5
{[%clk 00:02:07]} {[%emt 00:00:27]} 51. Rg8+ {[%clk 00:13:48]} {[%emt
00:00:59]} Kf5 {[%clk 00:02:33]} {[%emt 00:00:37]} 52. Rf8+ {[%clk 00:14:13]}
Kg5 {[%clk 00:02:42]} {[%emt 00:00:07]} 53. Rg8+ {[%clk 00:14:37]} Kf5 {[%clk
00:03:11]} 54. Rf8+ {[%clk 00:10:43]} {[%emt 00:04:17]} Ke4 {[%clk 00:03:30]}
{[%emt 00:00:34]} 55. Re8 {[%clk 00:10:33]} {[%emt 00:00:21]} Ra7 {[%clk
00:03:35]} {[%emt 00:00:21]} 56. Rg8 {[%clk 00:10:50]} {[%emt 00:00:12]} Rh7
{[%clk 00:03:48]} {[%emt 00:00:17]} 57. Rg5 {[%clk 00:09:16]} {[%emt 00:02:12]}
Kd4 {[%clk 00:03:10]} {[%emt 00:01:01]} 58. Rg4 {[%clk 00:06:07]} {[%emt
00:03:38]} Rh8 {[%clk 00:02:06]} {[%emt 00:01:59]} 59. Rg7 {[%clk 00:03:48]}
{[%emt 00:02:25]} Kd3 {[%clk 00:02:20]} {[%emt 00:00:30]} 60. Rg4 {[%clk
00:02:54]} {[%emt 00:01:09]} Ke2 {[%clk 00:02:25]} {[%emt 00:00:26]} 61. h4
{[%clk 00:02:30]} {[%emt 00:00:53]} Rh7 {[%clk 00:02:37]} {[%emt 00:00:17]} 62.
Rg5 {[%clk 00:02:06]} {[%emt 00:00:55]} e4 {[%clk 00:02:58]} {[%emt 00:00:12]}
63. Rg4 {[%clk 00:01:35]} {[%emt 00:01:01]} Rf7 {[%clk 00:02:10]} {[%emt
00:01:14]} 64. h5 {[%clk 00:01:51]} {[%emt 00:00:16]} f3 {[%clk 00:01:45]}
{[%emt 00:00:53]} 65. Kh3 {[%clk 00:00:41]} {[%emt 00:01:40]} e3 {[%clk
00:02:10]} {[%emt 00:00:07]} 66. fxe3 {[%clk 00:00:59]} {[%emt 00:00:14]} f2
{[%clk 00:02:36]} {[%emt 00:00:07]} 67. Rg2 {[%clk 00:01:11]} {[%emt 00:00:12]}
Kxe3 {[%clk 00:02:29]} {[%emt 00:00:37]} 68. Rxf2 {[%clk 00:01:13]} {[%emt
00:00:28]} Rxf2 {[%clk 00:02:52]} {[%emt 00:00:22]} 69. Kg4 {[%clk 00:01:37]}
{[%emt 00:00:05]} Ke4 {[%clk 00:03:09]} 70. Kg5 {[%clk 00:01:54]} {[%emt
00:00:15]} Ke5 {[%clk 00:03:32]} {[%emt 00:00:09]} 71. Kg6 {[%clk 00:02:20]}
Ke6 {[%clk 00:03:50]} {[%emt 00:00:14]} 72. h6 {[%clk 00:00:35]} {[%emt
00:02:12]} Rg2 {[%clk 00:04:17]} {[%emt 00:00:38]} 73. Kh7 {[%clk 00:01:02]}
Kf7 {[%clk 00:04:43]} 74. Kh8 {[%clk 00:01:29]} Rg8+ {[%clk 00:05:05]} {[%emt
00:00:07]} 75. Kh7 {[%clk 00:01:54]} Rg6 {[%clk 00:05:32]} 0-1

[Event "VII Open Internacional Quart de Poblet"]
[Site "Quart de Poblet, Spain"]
[Date "2019.08.09"]
[Round "7.3"]
[White "Lara Lopez, Jose"]
[Black "Castella Garcia, Fausto"]
[Result "1/2-1/2"]
[TimeControl "90m +30s por jugada"]
[WhiteFideId "2257041"]
[BlackFideId "3501922"]
[WhiteElo "2271"]
[BlackElo "2315"]

1. e4 {[%clk 01:30:57]} {[%emt 00:00:23]} c5 {[%clk 01:30:53]} 2. Nc3 {[%clk
01:31:14]} {[%emt 00:00:18]} Nc6 {[%clk 01:30:59]} {[%emt 00:00:06]} 3. g3
{[%clk 01:30:56]} {[%emt 00:00:49]} g6 {[%clk 01:31:06]} {[%emt 00:00:23]} 4.
Bg2 {[%clk 01:31:19]} {[%emt 00:00:12]} Bg7 {[%clk 01:31:27]} {[%emt 00:00:11]}
5. d3 {[%clk 01:30:37]} {[%emt 00:01:05]} d6 {[%clk 01:30:46]} {[%emt
00:01:13]} 6. f4 {[%clk 01:30:07]} {[%emt 00:00:57]} f5 {[%clk 01:28:39]}
{[%emt 00:02:37]} 7. Nf3 {[%clk 01:24:56]} {[%emt 00:05:40]} Nh6 {[%clk
01:28:47]} {[%emt 00:00:23]} 8. O-O {[%clk 01:23:46]} {[%emt 00:01:46]} O-O
{[%clk 01:29:08]} {[%emt 00:00:07]} 9. Kh1 {[%clk 01:22:37]} {[%emt 00:01:35]}
Rb8 {[%clk 01:25:23]} {[%emt 00:04:15]} 10. Ng5 {[%clk 01:13:15]} {[%emt
00:09:54]} Nd4 {[%clk 01:11:59]} {[%emt 00:13:51]} 11. Nd5 {[%clk 01:09:01]}
{[%emt 00:04:45]} fxe4 {[%clk 00:59:55]} {[%emt 00:12:34]} 12. dxe4 {[%clk
01:08:25]} {[%emt 00:01:05]} Bg4 {[%clk 00:58:07]} {[%emt 00:02:25]} 13. Qd2
{[%clk 01:08:21]} {[%emt 00:00:27]} Bd7 {[%clk 00:45:27]} {[%emt 00:13:13]} 14.
c3 {[%clk 01:03:27]} {[%emt 00:05:22]} Ne6 {[%clk 00:42:12]} {[%emt 00:03:46]}
15. Nf3 {[%clk 00:54:09]} {[%emt 00:09:47]} Nc7 {[%clk 00:41:14]} {[%emt
00:01:27]} 16. Re1 {[%clk 00:52:28]} {[%emt 00:02:11]} Nf7 {[%clk 00:33:52]}
{[%emt 00:07:58]} 17. b3 {[%clk 00:40:42]} {[%emt 00:12:10]} e6 {[%clk
00:32:21]} {[%emt 00:02:02]} 18. Nxc7 {[%clk 00:36:14]} {[%emt 00:05:26]} Qxc7
{[%clk 00:32:41]} {[%emt 00:00:06]} 19. Bb2 {[%clk 00:36:29]} b5 {[%clk
00:26:48]} {[%emt 00:06:16]} 20. Rac1 {[%clk 00:20:25]} {[%emt 00:16:33]} e5
{[%clk 00:19:53]} {[%emt 00:07:26]} 21. c4 {[%clk 00:19:37]} {[%emt 00:01:16]}
bxc4 {[%clk 00:20:09]} {[%emt 00:00:31]} 22. Rxc4 {[%clk 00:19:29]} {[%emt
00:00:53]} Rbe8 {[%clk 00:16:11]} {[%emt 00:03:57]} 23. Rc2 {[%clk 00:12:40]}
{[%emt 00:07:18]} exf4 {[%clk 00:15:35]} {[%emt 00:01:06]} 24. Bxg7 {[%clk
00:13:03]} {[%emt 00:00:33]} Kxg7 {[%clk 00:16:00]} {[%emt 00:00:03]} 25. Qc3+
{[%clk 00:12:18]} {[%emt 00:00:51]} Ne5 {[%clk 00:16:04]} {[%emt 00:00:27]} 26.
b4 {[%clk 00:10:37]} {[%emt 00:02:10]} fxg3 {[%clk 00:14:24]} {[%emt 00:02:10]}
27. bxc5 {[%clk 00:10:44]} {[%emt 00:00:29]} dxc5 {[%clk 00:14:04]} {[%emt
00:00:44]} 28. Nxe5 {[%clk 00:10:10]} {[%emt 00:01:04]} Qxe5 {[%clk 00:13:47]}
{[%emt 00:00:48]} 29. hxg3 {[%clk 00:09:44]} {[%emt 00:00:54]} Rf6 {[%clk
00:11:14]} {[%emt 00:03:13]} 30. Rec1 {[%clk 00:04:57]} {[%emt 00:05:06]} Qh5+
{[%clk 00:08:20]} {[%emt 00:03:42]} 31. Kg1 {[%clk 00:05:22]} Qg5 {[%clk
00:08:04]} {[%emt 00:00:34]} 32. Qd2 {[%clk 00:04:10]} {[%emt 00:01:42]} Qxd2
{[%clk 00:06:44]} {[%emt 00:02:04]} 33. Rxd2 {[%clk 00:04:36]} {[%emt
00:00:03]} Bc6 {[%clk 00:05:45]} {[%emt 00:01:16]} 34. Rxc5 {[%clk 00:04:30]}
{[%emt 00:00:43]} Bxe4 {[%clk 00:06:07]} {[%emt 00:00:03]} 35. Rc7+ {[%clk
00:04:17]} {[%emt 00:00:40]} Kh6 {[%clk 00:05:56]} {[%emt 00:00:44]} 36. Re2
{[%clk 00:02:21]} {[%emt 00:02:24]} Rfe6 {[%clk 00:05:32]} {[%emt 00:00:53]} 37.
Rxa7 {[%emt 00:01:15]} 1/2-1/2

[Event "VII Open Internacional Quart de Poblet"]
[Site "Quart de Poblet, Spain"]
[Date "2019.08.09"]
[Round "7.4"]
[White "Chernikov, Vladimir"]
[Black "Galvan Cipriani, Viviana"]
[Result "0-1"]
[TimeControl "90m +30s por jugada"]
[WhiteFideId "14112914"]
[BlackFideId "32041144"]
[WhiteElo "2315"]
[BlackElo "1941"]

1. d4 {[%clk 01:24:57]} {[%emt 00:02:17]} c5 {[%clk 01:30:42]} {[%emt
00:00:14]} 2. d5 {[%clk 01:25:21]} {[%emt 00:00:10]} e6 {[%clk 01:30:57]}
{[%emt 00:00:14]} 3. e4 {[%emt 00:00:34]} exd5 {[%clk 01:31:06]} 4. exd5 {[%emt
00:00:20]} d6 {[%clk 01:30:41]} {[%emt 00:00:51]} 5. Nc3 {[%clk 01:26:26]} Nf6
{[%clk 01:30:54]} {[%emt 00:00:12]} 6. Bb5+ {[%clk 01:26:48]} {[%emt 00:00:15]}
Bd7 {[%clk 01:30:36]} {[%emt 00:00:42]} 7. a4 {[%clk 01:27:02]} {[%emt
00:00:13]} Be7 {[%clk 01:29:24]} {[%emt 00:01:43]} 8. Nf3 {[%clk 01:26:38]}
{[%emt 00:00:55]} O-O {[%clk 01:29:09]} {[%emt 00:00:57]} 9. O-O {[%emt
00:06:14]} Na6 {[%emt 00:03:11]} 10. Bxa6 {[%clk 01:22:05]} {[%emt 00:02:58]}
bxa6 {[%clk 01:22:58]} {[%emt 00:00:38]} 11. Nd2 {[%clk 01:22:30]} Re8 {[%emt
00:01:04]} 12. Nc4 {[%emt 00:06:08]} Rb8 {[%clk 01:05:01]} {[%emt 00:12:07]} 13.
Bf4 {[%clk 00:57:27]} Rb4 {[%clk 00:55:37]} 14. Qd3 Bf5 15. Qxf5 {[%clk
01:12:03]} Rxc4 {[%clk 01:05:01]} 16. Bg3 {[%clk 01:12:03]} Qb6 {[%clk
01:05:01]} 17. Rab1 {[%clk 01:12:03]} Bf8 {[%clk 01:05:01]} 18. Qf3 {[%clk
01:12:03]} Ne4 {[%clk 01:05:01]} 19. Nxe4 {[%clk 01:12:03]} Rcxe4 {[%clk
01:05:01]} 20. b3 {[%clk 01:12:03]} c4 {[%clk 01:05:01]} 21. a5 {[%clk
01:12:03]} Qb5 {[%clk 01:05:01]} 22. bxc4 {[%clk 01:12:03]} Qxb1 {[%clk
01:05:01]} 23. Qxe4 {[%clk 01:12:03]} Qxf1+ {[%clk 01:05:01]} 0-1